Workbook

Sheet Budget for 5 schools
C2: Project Title : Project Grow with Books (5 Schools)
C3: Project Period : 1st October 2015 to 30th September 2016
B5: 1 | C5: Personnel Costs | D5: Unit description | E5: Per school expenses | F5: No of Schools | G5: Total Cost
B7: 1.1.1 | C7: Associate Director | D7: Monthly | E7: 1779.130435 | F7: 5 | G7: =E7*F7 -> 8895.652174
B8: 1.1.2 | C8: Programme Consultant | D8: Monthly | E8: 860.8695652 | F8: 5 | G8: =E8*F8 -> 4304.347826
B9: 1.1.3 | C9: Programme Manager -AREA CO-OR | D9: Monthly | E9: 5119.304348 | F9: 5 | G9: 25596.52174
B10: 1.1.4 | C10: Field Coordinator -CO-OR | D10: Monthly | E10: 5739.130435 | F10: 5 | G10: 28695.65217
B11: 1.1.5 | C11: Advocacy worker | D11: Monthly | E11: 1147.826087 | F11: 5 | G11: 5739.130435
B12: 1.1.6 | C12: School Supervisor | D12: Monthly | E12: 12052.17391 | F12: 5 | G12: 60260.86957
B13: 1.1.7 | C13: Accountant | D13: Monthly | E13: 1565.217391 | F13: 5 | G13: 7826.086957
B14: 1.1.8 | C14: Administartion supervisor | D14: Monthly | E14: 521.7391304 | F14: 5 | G14: 2608.695652
B15: 1.1.9 | C15: Office boy | D15: Monthly | E15: 260.8695652 | F15: 5 | G15: 1304.347826
B16: 1.1.10 | C16: Office assistant | D16: Monthly | E16: 834.7826087 | F16: 5 | G16: 4173.913043
B17: 1.1.11 | C17: Knowledge Management Coordinator | D17: Monthly | E17: 433.0434783 | F17: 5 | G17: 2165.217391
C18: Subtotal Personnel Costs 1 | G18: =SUM(G7:G17) -> 151570.4348
B19: 1.2 | C19: Staff Welfare | F19: No.of staff
B20: 1.2.1 | C20: Mediclaim per persom | D20: Annually | E20: 800 | F20: 8 | G20: =E20*F20 -> 6400 | H20: This is increase in number
B21: 1.2.2 | C21: Staff event per person | D21: Annually | E21: 808.6956522 | F21: 8 | G21: =E21*F21 -> 6469.565217
C22: Subtotal Personnel Costs 2 | G22: =G20+G21 -> 12869.56522
C23: Total Personnel costs 1+2 | G23: =G18+G22 -> 164440
B24: 2 | C24: Strengthen teaching/learning process for improving language levels of children
F25: No.of schools
B26: 2.1.1 | C26: Training | D26: 4 trainings | E26: 1617.391304 | F26: 5 | G26: =E26*F26 -> 8086.956522
B27: 2.1.2 | C27: Training new recruites | D27: One time | E27: 217.3913043 | F27: 5 | G27: =E27*F27 -> 1086.956522
B28: 2.2 | C28: Honararium to Book Fairies in schools | D28: Monthly | E28: 105060 | F28: 5 | G28: =E28*F28 -> 525300
B29: 2.3 | C29: Wall Magazine Corner for children’s creativity | D29: Per School | E29: 521.7391304 | F29: 5 | G29: =E29*F29 -> 2608.695652
B30: 3 | C30: Awareness Raising | F30: 5
B31: 3.1 | C31: Event for Children (events like reading competition, storytelling competition for 1st to 4th standard) | D31: 4 classes per school | E31: 2000 | F31: 5 | G31: =E31*F31 -> 10000
B32: 3.2 | C32: Event for children (event like essay competition, storytelling competition for 5th to 7th standards) | D32: 3 classes per school | E32: 521.7391304 | F32: 5 | G32: 2608.695652
B33: 3.3 | C33: Supplies / Inputs | F33: 5
B34: 3.3.1 | C34: Development of teaching learning material | D34: Per school | E34: 1500 | F34: 5 | G34: 7500
B35: 3.3.2 | C35: Stationary for Children (Books, Bags, stationary etc) | D35: Per school | E35: 10000 | F35: 5 | G35: 50000
B36: 3.4 | C36: Advocacy | F36: 5
B37: 3.4.1 | C37: Annual Education Fairs at cluster level | E37: 521.7391304 | F37: 5 | G37: 2608.695652
C38: Subtotal 2,3 | G38: =SUM(G26:G37) -> 609800
B39: 4 | C39: Improved community/parent/ sibling support in studies for children
B40: 4.1 | C40: Advocacy
B41: 4.1.1 | C41: Community /Parent and Sibling involvement in child’s learning process | D41: Per School | E41: 1200 | F41: 5 | G41: =E41*F41 -> 6000
C42: Subtotal 4 | G42: =G41 -> 6000
B43: 5 | C43: Improved knowledge and participation of SMCs in school management
B44: 5.1 | C44: Training
B45: 5.1.1 | C45: Formation and Capacity Building of School Managememt Commitees | D45: To be undertaken by Advocacy Worker +Sr. book fairies | E45: 478.2608696 | F45: 5 | G45: =E45*F45 -> 2391.304348
B46: 5.2 | C46: Awareness Activities
B47: 5.2.1 | C47: Meetings with SMC members in school | D47: To be undertaken by Advocacy Worker +Sr. book fairies | E47: 200 | F47: 5 | G47: =E47*F47 -> 1000
B48: 5.3 | C48: Advocacy
B49: 5.3.2 | C49: Child Rights Week Campaign | D49: School level | E49: 1000 | F49: 5 | G49: =E49*F49 -> 5000
C50: Subtotal 5 | G50: =SUM(G45:G49) -> 8391.304348
B51: 6 | C51: Monitoring and Evaluation
B52: 6.2 | C52: Assessment of children on learning enhancement | D52: To be undertaken by Supervisors + co-ordinators | E52: 500 | F52: 5 | G52: =E52*F52 -> 2500
C53: Subtotal 6 | G53: =G52 -> 2500
B54: 7 | C54: Support Costs
B55: 7.1 | C55: Office Rent and maintenance | E55: 3339.130435 | F55: 5 | G55: =E55*F55 -> 16695.65217
B56: 7.2 | C56: Consummables & Utilities | E56: 730.4347826 | F56: 5 | G56: =E56*F56 -> 3652.173913
B57: 7.3 | C57: Printing & Stationery | E57: 521.7391304 | F57: 5 | G57: 2608.695652
B58: 7.3 | C58: Postage and communication | E58: 834.7826087 | F58: 5 | G58: 4173.913043
B59: 7.4 | C59: Travelling expenses for office staff | E59: 313.0434783 | F59: 5 | G59: 1565.217391
C60: Subtotal Support Costs | G60: =G55+G56+G57+G58+G59 -> 28695.65217
C61: TOTAL | G61: =G60+G53+G50+G42+G38+G23 -> 819826.9565
C62: Head office service charges | E62: 2609 | F62: 5 | G62: =E62*F62 -> 13045
C63: Total project expenses for Grow With Books | G63: =G61+G62 -> 832871.9565
D65: Cost per school | E65: =G63/5 -> 166574.3913
